bitfinex/quotes_BTCUSD_20220111
["timestamp","ask_amount","ask_price","bid_price","bid_amount"]
[1641914492211,0.33035447,41960.0,41959.0,0.01]
[1641914492612,0.001,41961.0,41958.0,0.05959702]
[1641914492813,0.001,41961.0,41959.0,0.059592]
[1641914493712,0.30759821,41961.0,41959.0,0.059592]
[1641914493912,0.30759821,41961.0,41958.0,0.008]
[1641914494115,0.59828455,41961.0,41958.0,0.008]
[1641914494369,2.29272872,41960.0,41958.0,0.008]
[1641914494569,2.29272872,41960.0,41943.0,1.37527849]
[1641914494570,1.60195763,41959.0,41946.0,0.17879678]
[1641914494762,0.059619,41955.0,41944.0,0.42]
[1641914494963,0.00126329,41953.0,41951.0,0.00085413]
[1641914495162,1.7216373,41952.0,41951.0,0.00085413]
[1641914495564,2.12956963,41952.0,41951.0,0.00085413]
[1641914495862,1.37931106,41952.0,41945.0,0.059616]
[1641914496062,1.37931106,41952.0,41949.0,0.00085409]
[1641914496264,0.28645709,41951.0,41949.0,0.00085409]
[1641914496463,0.3939,41950.0,41949.0,0.00085409]
[1641914496666,0.0439,41950.0,41949.0,0.00085409]
[1641914496863,0.00126329,41953.0,41949.0,0.00085409]
[1641914497065,0.27786959,41953.0,41948.0,0.05961]
[1641914497264,0.27786959,41953.0,41949.0,0.0058541]
[1641914497265,0.013,41950.0,41949.0,0.0058541]
[1641914497566,0.3171026,41950.0,41949.0,0.0058541]
[1641914497765,0.013,41950.0,41949.0,0.0058541]
[1641914498416,0.013,41950.0,41949.0,0.005]
[1641914498618,0.013,41950.0,41944.0,0.42]
[1641914498619,0.2774682,41952.0,41947.0,0.00085411]
[1641914498819,0.0439,41951.0,41947.0,0.00085411]
[1641914499016,0.0389,41951.0,41947.0,0.00085411]
[1641914499418,0.30326541,41950.0,41947.0,0.00585411]
[1641914499619,0.32382825,41949.0,41947.0,0.005]
[1641914499816,0.32382825,41949.0,41947.0,0.00585412]
[1641914500017,0.1439,41949.0,41947.0,0.00585412]
[1641914500616,0.1439,41949.0,41947.0,0.00085412]
[1641914500817,0.1439,41949.0,41944.0,0.47]
[1641914500818,0.0439,41949.0,41944.0,0.47]
[1641914501017,0.0439,41949.0,41946.0,0.00085413]
[1641914501518,0.0569,41949.0,41946.0,0.00085413]
[1641914501717,0.38265213,41949.0,41946.0,0.00085413]
[1641914501970,0.38265213,41949.0,41944.0,0.428]
[1641914501971,0.7161866,41949.0,41944.0,0.428]
[1641914502173,0.8161866,41949.0,41945.0,0.00085414]
[1641914502372,0.00129342,41946.0,41945.0,0.00085414]
[1641914502572,0.79519342,41946.0,41945.0,0.00085414]
[1641914502769,0.04519342,41946.0,41945.0,0.00085414]
[1641914503170,0.0439,41946.0,41944.0,0.42]
[1641914503370,0.0599,41946.0,41945.0,0.004]
[1641914503571,0.0499,41946.0,41945.0,0.004]
[1641914505172,0.0339,41946.0,41944.0,0.64883914]
[1641914505373,0.016,41946.0,41945.0,0.306]
[1641914505621,0.016,41946.0,41945.0,1.726813]
[1641914506018,0.016,41946.0,41945.0,0.676813]
[1641914506218,0.016,41946.0,41945.0,0.726813]
[1641914506419,0.016,41946.0,41945.0,1.176813]
[1641914506618,0.2797837,41955.0,41945.0,1.170813]
[1641914506619,0.00062199,41955.0,41945.0,1.170813]
[1641914506817,0.4390293,41957.0,41949.0,0.17882365]
[1641914507018,0.00062201,41955.0,41949.0,0.11921565]
[1641914507217,0.00062201,41955.0,41950.0,0.05]
[1641914507618,0.00062201,41955.0,41950.0,0.049737]
[1641914508018,1.44334705,41957.0,41949.0,0.12821565]
[1641914508220,0.00062217,41955.0,41950.0,0.00085408]
[1641914508419,0.00062217,41955.0,41951.0,0.059608]
[1641914508620,0.00062217,41955.0,41950.0,0.00085408]
[1641914509220,1.1462144,41957.0,41946.0,0.2288273]
[1641914509463,0.01462217,41955.0,41950.0,0.00785408]
[1641914510266,0.014,41955.0,41950.0,0.007]
[1641914510467,0.01462217,41955.0,41950.0,0.00785408]
[1641914510669,0.00062217,41955.0,41950.0,0.00085408]
[1641914511272,0.00062217,41955.0,41950.0,0.00785408]
[1641914511469,0.013,41955.0,41950.0,0.007]
[1641914511668,0.01362217,41955.0,41950.0,0.00785408]
[1641914511868,0.00362217,41955.0,41950.0,0.00785408]
[1641914512469,0.00362217,41955.0,41950.0,0.06746408]
[1641914512671,0.39899303,41957.0,41950.0,0.05961]
[1641914512969,0.00062217,41955.0,41950.0,0.06046408]
[1641914513415,0.00062217,41955.0,41950.0,0.06846408]
[1641914513917,0.4257289,41956.0,41950.0,0.008]
[1641914513918,0.33933161,41954.0,41950.0,0.008]
[1641914514118,0.1,41954.0,41950.0,0.00885408]
[1641914514716,0.1,41954.0,41950.0,0.10875408]
[1641914515118,0.1,41954.0,41950.0,0.0999]
[1641914515119,0.70212786,41953.0,41950.0,0.0999]
[1641914515321,0.70212786,41953.0,41950.0,0.11375408]
[1641914515520,0.80212786,41953.0,41950.0,0.11375408]
[1641914515919,0.04513859,41952.0,41950.0,0.11375408]
[1641914516119,1.37461538,41951.0,41950.0,0.11375408]
[1641914516319,1.41851538,41951.0,41950.0,0.1129]
[1641914516521,1.51851538,41951.0,41950.0,0.1129]
[1641914516719,1.41851538,41951.0,41950.0,0.0999]
[1641914517364,0.73051538,41951.0,41950.0,0.0999]
[1641914517765,1.3,41950.0,41948.0,0.0008541]
[1641914517967,1.64587836,41949.0,41948.0,0.0008541]
[1641914518163,1.44519202,41949.0,41948.0,0.0008541]
[1641914518364,1.54519202,41949.0,41948.0,0.0008541]
[1641914518765,1.86320271,41949.0,41944.0,0.42]
[1641914518968,0.059631,41947.0,41946.0,0.00085413]
[1641914519162,0.103531,41947.0,41946.0,0.00085413]
[1641914519363,0.853531,41947.0,41946.0,0.00085413]
[1641914519563,0.103531,41947.0,41946.0,0.00085413]
[1641914519764,0.02829202,41949.0,41946.0,0.00085413]
[1641914519965,0.027,41949.0,41944.0,0.47]
[1641914520165,0.027,41949.0,41945.0,0.00085414]
[1641914520616,0.28108658,41952.0,41945.0,0.00085414]
[1641914520813,0.46874315,41951.0,41945.0,0.00085414]
[1641914521013,0.00125826,41953.0,41945.0,0.29996422]
[1641914521215,0.31132346,41961.0,41945.0,0.29996422]
[1641914522114,0.25129471,41955.0,41948.0,0.25507414]
[1641914522313,0.39190671,41956.0,41948.0,0.30507414]
[1641914522515,0.0003666,41954.0,41951.0,0.119198]
[1641914523315,0.0053666,41954.0,41951.0,0.169198]
[1641914523516,0.005,41954.0,41951.0,0.169198]
[1641914524118,0.005,41954.0,41951.0,0.05]
[1641914524371,0.005,41954.0,41949.0,0.05]
[1641914524566,0.0003666,41955.0,41944.0,0.42]
[1641914524766,0.28889159,41957.0,41944.0,0.42]
[1641914524966,0.00062946,41952.0,41944.0,0.42]
[1641914525166,0.00062946,41952.0,41944.0,0.47]
[1641914525366,0.00062946,41952.0,41948.0,0.38006471]
[1641914525566,0.00062946,41952.0,41946.0,0.2794817]
[1641914525771,0.00062946,41952.0,41945.0,0.05961227]
[1641914525967,0.4174297,41954.0,41945.0,0.05961227]
[1641914526168,0.00062945,41951.0,41945.0,0.05961227]
[1641914526368,0.00062945,41951.0,41948.0,0.0999]
[1641914526769,0.00062945,41951.0,41950.0,0.43603653]
[1641914526969,0.00062945,41951.0,41950.0,0.74821914]
[1641914527169,0.00818082,41962.0,41950.0,0.79821914]
[1641914527468,0.00818082,41962.0,41948.0,0.0999]
[1641914527469,0.00062947,41953.0,41948.0,0.0999]
[1641914527669,0.00062947,41953.0,41944.0,0.42]
[1641914527871,0.00062947,41953.0,41950.0,0.0999]
[1641914528117,0.00062947,41953.0,41943.0,0.00085421]
[1641914528118,0.65,41950.0,41943.0,0.00085421]
[1641914528318,0.0012166,41945.0,41939.0,0.42509525]
[1641914528515,0.47240516,41945.0,41943.0,0.00085418]
[1641914528716,1.16009082,41944.0,41943.0,0.00085418]
[1641914528916,0.76009082,41944.0,41943.0,0.10075418]
[1641914529615,0.76009082,41944.0,41943.0,0.0999]
[1641914529616,0.76109082,41944.0,41943.0,0.0999]
[1641914530823,0.76009082,41944.0,41943.0,0.0999]
[1641914533365,1.33724603,41944.0,41943.0,0.0999]
[1641914533562,1.3,41943.0,41941.0,0.00085418]
[1641914533764,1.3,41943.0,41925.0,1.5240494]
[1641914533765,0.9,41941.0,41925.0,1.5240494]
[1641914533962,0.00128003,41934.0,41925.0,1.0240494]
[1641914534163,0.00718656,41933.0,41925.0,1.0240494]
[1641914534363,0.00718656,41933.0,41925.0,0.6040494]
[1641914534364,0.46918551,41932.0,41925.0,0.6040494]
[1641914534563,0.67932228,41929.0,41923.0,0.42]
[1641914535166,0.41868891,41929.0,41923.0,0.42]
[1641914535618,0.41868891,41929.0,41923.0,0.47]
[1641914535819,0.41868891,41929.0,41923.0,0.42]
[1641914536220,0.00718656,41933.0,41928.0,0.27453975]
[1641914536421,0.0439,41935.0,41928.0,0.32453975]
[1641914536620,0.0439,41935.0,41928.0,0.37453975]
[1641914537020,0.0439,41935.0,41932.0,0.4576792]
[1641914537621,0.0439,41935.0,41932.0,0.0999]
[1641914538422,0.0439,41935.0,41932.0,0.1499]
[1641914538626,0.69677402,41935.0,41933.0,0.0999]
[1641914538824,1.3068437,41934.0,41933.0,0.0999]
[1641914539022,1.3507437,41934.0,41933.0,0.0999]
[1641914539468,1.3577437,41934.0,41933.0,0.0999]
[1641914539667,1.4577437,41934.0,41933.0,0.0999]
[1641914539868,1.5173897,41934.0,41933.0,0.0999]
[1641914540166,1.8173897,41934.0,41933.0,0.0999]
[1641914540366,1.8173897,41934.0,41916.0,0.119291]
[1641914540367,0.95,41933.0,41916.0,0.119291]
[1641914540566,0.05966,41931.0,41915.0,0.6040494]
[1641914540765,1.10965949,41933.0,41913.0,2.3130494]
[1641914540766,0.00129647,41923.0,41913.0,2.3130494]
[1641914540966,0.29588344,41920.0,41913.0,0.6040494]
[1641914541170,0.29588344,41920.0,41913.0,1.07684101]
[1641914541367,0.42381145,41919.0,41918.0,0.0999]
[1641914542769,0.68495773,41923.0,41918.0,0.0999]
[1641914543115,0.00129647,41923.0,41918.0,0.0999]
[1641914543517,0.00429647,41923.0,41918.0,0.1439]
[1641914544118,0.00429647,41923.0,41918.0,0.14468333]
[1641914544317,0.00429647,41923.0,41919.0,0.059653]
[1641914544517,0.00429647,41923.0,41918.0,0.14468333]
[1641914544717,0.00129647,41923.0,41918.0,0.10068333]
[1641914545117,0.00129647,41923.0,41918.0,0.0999]
[1641914545316,0.00129647,41923.0,41918.0,0.10068333]
[1641914545518,0.38825273,41920.0,41918.0,0.11568333]
[1641914545724,0.00829647,41923.0,41918.0,0.11568333]
[1641914545725,0.007,41923.0,41918.0,0.16568333]
[1641914545919,0.007,41923.0,41919.0,0.370813]
[1641914546118,0.007,41923.0,41919.0,0.470813]
[1641914546519,0.007,41923.0,41919.0,0.1008039]
[1641914546720,0.26210326,41928.0,41922.0,0.0999]
[1641914546964,0.24627449,41929.0,41926.0,0.34339993]
[1641914547166,0.24627449,41929.0,41926.0,0.44329993]
[1641914547364,0.24627449,41929.0,41927.0,0.05964134]
[1641914547766,0.001267,41934.0,41927.0,0.05964134]
[1641914547967,0.001267,41934.0,41929.0,0.059639]
[1641914548166,0.31625037,41935.0,41929.0,0.059639]
[1641914548367,0.06086795,41938.0,41929.0,0.059639]
[1641914548767,0.2939459,41935.0,41929.0,0.059639]
[1641914548973,0.2939459,41935.0,41931.0,0.06043875]
[1641914549167,0.2939459,41935.0,41932.0,0.059634]
[1641914549367,0.62232877,41935.0,41932.0,0.059634]
[1641914549568,0.2939459,41935.0,41932.0,0.059634]
[1641914549867,0.2939459,41935.0,41931.0,0.00480375]
[1641914550068,0.2939459,41935.0,41934.0,0.0999]
[1641914550473,0.56580555,41935.0,41934.0,0.0999]
[1641914551115,0.2939459,41935.0,41934.0,0.0999]
[1641914551518,0.00122995,41938.0,41934.0,0.1059]
[1641914551714,0.00048921,41945.0,41934.0,0.106]
[1641914551715,0.0017413,41945.0,41934.0,0.106]
[1641914551915,0.0017413,41945.0,41939.0,0.0999]
[1641914551916,0.00048921,41945.0,41939.0,0.0999]
[1641914552113,0.00048921,41945.0,41939.0,0.23024]
[1641914552315,0.68825305,41947.0,41939.0,0.28024]
[1641914552516,0.00048935,41945.0,41941.0,0.05962]
[1641914552916,0.00048935,41945.0,41944.0,0.0999]
[1641914553616,0.29231212,41951.0,41944.0,0.1109]
[1641914553816,0.00049346,41947.0,41944.0,0.1109]
[1641914554216,0.29118664,41951.0,41944.0,0.1109]
[1641914554467,0.32863912,41948.0,41944.0,0.1109]
[1641914554871,0.32863912,41948.0,41944.0,0.0999]
[1641914555569,0.32863912,41948.0,41944.0,0.1149]
[1641914556576,0.42863912,41948.0,41944.0,0.1149]
[1641914556770,0.42863912,41948.0,41944.0,0.0999]
[1641914557570,0.42760312,41948.0,41944.0,0.1209]
[1641914557770,0.32760312,41948.0,41944.0,0.1209]
[1641914557973,0.0012875,41949.0,41944.0,0.1209]
[1641914558623,0.00063253,41949.0,41944.0,0.1209]
[1641914558825,0.00063253,41949.0,41944.0,0.0999]
[1641914559027,0.32295798,41947.0,41944.0,0.0999]
[1641914559626,0.2990996,41952.0,41944.0,0.1119]
[1641914559825,0.43907419,41947.0,41944.0,0.1119]
[1641914560126,0.29911179,41946.0,41944.0,0.1119]
[1641914560327,0.9439,41945.0,41944.0,0.1119]
[1641914560526,1.0439,41945.0,41944.0,0.1119]
[1641914561030,2.11256519,41945.0,41944.0,0.0999]
[1641914561624,2.14156519,41945.0,41944.0,0.0999]
[1641914561875,2.09156519,41945.0,41944.0,0.0999]
[1641914562567,2.09156519,41945.0,41944.0,0.07555591]
[1641914562767,2.06256519,41945.0,41944.0,0.07555591]
[1641914563668,2.07756519,41945.0,41944.0,0.07555591]
[1641914564868,2.06256519,41945.0,41944.0,0.07555591]
[1641914565620,2.09656519,41945.0,41944.0,0.07555591]
[1641914566420,2.09656519,41945.0,41941.0,0.00085419]
[1641914566421,0.00121704,41942.0,41941.0,0.00085419]
[1641914566621,1.62920997,41942.0,41941.0,0.00085419]
[1641914566822,1.62920997,41942.0,41923.0,1.0766]
[1641914567025,1.62920997,41942.0,41939.0,0.00085421]
[1641914567026,1.72920997,41942.0,41939.0,0.00085421]
[1641914567222,1.72920997,41942.0,41940.0,0.0999]
[1641914567421,1.46687962,41941.0,41940.0,0.0999]
[1641914567621,1.56687962,41941.0,41940.0,0.0999]
[1641914569363,1.56687962,41941.0,41940.0,0.0949]
[1641914569567,1.58087962,41941.0,41940.0,0.0949]
[1641914571669,1.59387962,41941.0,41940.0,0.0949]
[1641914571867,1.57987962,41941.0,41940.0,0.0949]
[1641914572767,1.57987962,41941.0,41940.0,0.05114881]
[1641914572966,0.172642,41941.0,41940.0,0.05114881]
[1641914573217,0.072642,41941.0,41940.0,0.05114881]
[1641914573418,0.0710577,41941.0,41940.0,0.05114881]
[1641914573819,0.95,41939.0,41921.0,0.3017]
[1641914574020,0.0439,41938.0,41923.0,1.0766]
[1641914574220,0.00122602,41929.0,41923.0,1.0766]
[1641914574420,0.0439,41928.0,41923.0,1.0766]
[1641914574621,0.0439,41928.0,41923.0,0.0999]
[1641914574820,0.2498471,41920.0,41918.0,0.29645322]
[1641914575019,0.2498471,41920.0,41917.0,0.059657]
[1641914575020,0.0439,41919.0,41917.0,0.059657]
[1641914575219,0.0439,41919.0,41918.0,0.0999]
[1641914575620,0.0489,41919.0,41918.0,0.0999]
[1641914575820,1.2,41918.0,41917.0,0.04648693]
[1641914576020,0.39481074,41916.0,41911.0,0.009552]
[1641914576223,0.00128264,41913.0,41911.0,0.009552]
[1641914576422,0.0439,41912.0,41911.0,0.009552]
[1641914577072,0.0439,41912.0,41911.0,0.109452]
[1641914577672,0.7509,41912.0,41911.0,0.109452]
[1641914578072,0.8509,41912.0,41911.0,0.109452]
[1641914578272,1.13467176,41912.0,41911.0,0.109452]
[1641914578474,0.65,41911.0,41901.0,0.008]
[1641914578674,0.65,41911.0,41894.0,0.7243114]
[1641914578675,0.00127459,41902.0,41894.0,0.7243114]
[1641914578873,0.0439,41901.0,41894.0,0.7243114]
[1641914579272,1.69687692,41900.0,41894.0,1.08589239]
[1641914579473,0.0439,41899.0,41894.0,1.08589239]
[1641914579675,0.0439,41899.0,41895.0,0.05468352]
[1641914579878,0.0439,41899.0,41896.0,0.370813]
[1641914580073,0.0439,41899.0,41896.0,0.05]
[1641914580474,0.0439,41899.0,41897.0,0.25456109]
[1641914580919,0.0439,41899.0,41898.0,2.946813]
[1641914581121,0.0439,41899.0,41898.0,3.096813]
[1641914581720,0.0439,41899.0,41898.0,0.4]
[1641914581921,0.0439,41899.0,41898.0,0.05]
[1641914582523,0.0439,41899.0,41897.0,0.178993]
[1641914582924,0.00124393,41909.0,41898.0,1.370813]
[1641914583124,0.00124393,41909.0,41902.0,0.17899629]
[1641914583321,0.0439,41913.0,41905.0,0.059667]
[1641914583522,0.0451497,41913.0,41905.0,0.059667]
[1641914583821,0.24213775,41909.0,41908.0,0.28810839]
[1641914584021,0.24213775,41909.0,41907.0,0.15075458]
[1641914584670,0.45456155,41912.0,41907.0,0.21042358]
[1641914584868,0.45456155,41912.0,41907.0,0.209569]
[1641914585468,0.0012497,41913.0,41908.0,0.4515088]
[1641914585670,0.002,41912.0,41909.0,0.27815892]
[1641914585870,0.002,41912.0,41909.0,0.33781892]
[1641914586071,0.002,41912.0,41909.0,0.43781892]
[1641914586471,0.002,41912.0,41911.0,0.6999]
[1641914586670,0.002,41912.0,41911.0,0.1499]
[1641914586870,0.28247709,41918.0,41912.0,0.059662]
[1641914586871,0.24864307,41917.0,41912.0,0.059662]
[1641914587071,0.24864307,41917.0,41914.0,0.0999]
[1641914587270,0.34214209,41918.0,41914.0,0.0999]
[1641914587675,0.01,41917.0,41914.0,0.1089]
[1641914588922,0.53773277,41918.0,41914.0,0.159561]
[1641914589120,0.28247709,41918.0,41914.0,0.159561]
[1641914589319,0.28247709,41918.0,41914.0,0.0999]
[1641914589720,0.008,41918.0,41914.0,0.1117545]
[1641914590121,0.008,41918.0,41915.0,0.47369839]
[1641914590923,0.00127838,41927.0,41916.0,0.58699878]
[1641914591122,0.00127838,41927.0,41916.0,0.63699878]
[1641914591323,0.00127838,41927.0,41916.0,0.68699878]
[1641914591523,0.00127838,41927.0,41917.0,0.059646]
[1641914592181,0.24746576,41927.0,41917.0,0.059646]
[1641914592386,0.24746576,41927.0,41921.0,0.51896028]
[1641914592783,0.24746576,41927.0,41921.0,0.05964457]
[1641914593185,0.30926889,41926.0,41919.0,0.119288]
[1641914593382,0.30926889,41926.0,41915.0,0.12016055]
[1641914593383,0.00121641,41921.0,41915.0,0.12016055]
[1641914593585,0.00121641,41921.0,41919.0,0.006]
[1641914593985,0.35,41918.0,41914.0,0.087192]
[1641914594184,0.63073463,41918.0,41914.0,0.087192]
[1641914594385,0.35,41918.0,41914.0,0.087192]
[1641914594585,0.059667,41917.0,41914.0,0.087192]
[1641914594986,0.36002326,41916.0,41914.0,0.137192]
[1641914595185,1.42391155,41915.0,41914.0,0.087192]
[1641914595624,1.71905897,41915.0,41914.0,0.105192]
[1641914595821,1.56905897,41915.0,41914.0,0.105192]
[1641914596019,1.56905897,41915.0,41902.0,0.00193497]
[1641914596020,0.05969,41909.0,41902.0,0.00193497]
[1641914596221,1.08282734,41903.0,41902.0,0.00193497]
[1641914596419,1.36633028,41903.0,41902.0,0.00193497]
[1641914596620,0.9,41902.0,41895.0,0.05662197]
[1641914596819,0.9,41902.0,41891.0,0.119373]
[1641914597019,1.14813871,41902.0,41894.0,0.33829348]
[1641914597220,0.059694,41898.0,41891.0,0.119373]
[1641914597421,0.12680235,41898.0,41884.0,1.4082]
[1641914597720,0.12680235,41898.0,41881.0,0.008]
[1641914597721,0.00124673,41891.0,41881.0,0.008]
[1641914597923,0.32257096,41890.0,41881.0,0.008]
[1641914598120,0.40709393,41883.0,41881.0,0.008]
[1641914598323,0.49332393,41883.0,41882.0,0.0999]
[1641914599772,0.40709393,41883.0,41882.0,0.09389]
[1641914600979,0.40709393,41883.0,41882.0,0.07989]
[1641914601374,0.90709393,41883.0,41882.0,0.07989]
[1641914601573,0.0012519,41884.0,41882.0,0.07989]
[1641914601775,0.413542,41895.0,41882.0,0.27889]
[1641914601976,0.42,41897.0,41885.0,0.05969696]
[1641914601977,0.0012795,41892.0,41885.0,0.05969696]
[1641914602581,0.0012795,41892.0,41886.0,0.059693]
[1641914602778,0.0012795,41892.0,41887.0,0.42145087]
[1641914602979,0.0012795,41892.0,41888.0,0.05]
[1641914603421,0.27143272,41892.0,41888.0,0.05]
[1641914603622,0.0012795,41892.0,41885.0,0.06055434]
[1641914603821,0.26530066,41891.0,41888.0,0.012]
[1641914604121,0.008019,41885.0,41883.0,0.1]
[1641914604322,0.64085578,41885.0,41883.0,0.05]
[1641914604623,0.64085578,41885.0,41882.0,0.189505]
[1641914604821,0.64085578,41885.0,41882.0,0.0798]
[1641914605421,0.27023806,41884.0,41882.0,0.0798]
[1641914605623,0.0012514,41883.0,41882.0,0.0798]
[1641914605823,0.4609704,41883.0,41882.0,0.0968]
[1641914606127,1.19537761,41883.0,41882.0,0.0968]
[1641914606324,1.50425076,41883.0,41882.0,0.0968]
[1641914606970,1.50425076,41883.0,41882.0,0.0798]
[1641914607772,1.50425076,41883.0,41882.0,0.1118]
[1641914607773,1.51125076,41883.0,41882.0,0.1118]
[1641914608071,1.61125076,41883.0,41882.0,0.1118]
[1641914608271,1.51125076,41883.0,41882.0,0.1118]
[1641914608471,0.0679704,41883.0,41882.0,0.1118]
[1641914608675,0.0082514,41883.0,41882.0,0.032]
[1641914608871,0.0082514,41883.0,41881.0,0.008]
[1641914609072,0.0012514,41883.0,41881.0,0.008]
[1641914609674,0.0112514,41883.0,41881.0,0.029]
[1641914610072,0.0112514,41883.0,41881.0,0.079]
[1641914610378,0.01,41883.0,41881.0,0.079]
[1641914611025,0.008019,41885.0,41881.0,0.058]
[1641914611424,0.008019,41885.0,41882.0,0.059701]
[1641914611626,0.008019,41885.0,41883.0,0.43050708]
[1641914611827,0.008019,41885.0,41884.0,1.64175924]
[1641914612025,0.008019,41885.0,41884.0,2.01257224]
[1641914612425,0.42,41897.0,41884.0,2.01257224]
[1641914612627,0.42,41897.0,41885.0,1.63756876]
[1641914612827,0.42,41897.0,41890.0,0.059686]
[1641914613027,0.42,41897.0,41891.0,0.39362793]
[1641914613628,0.42,41897.0,41891.0,0.77255396]
[1641914613830,0.42,41897.0,41892.0,0.08059554]
[1641914614378,0.42,41897.0,41893.0,0.11936842]
[1641914614573,0.42,41897.0,41893.0,0.059682]
[1641914614768,0.42,41897.0,41893.0,0.109682]
[1641914614968,0.42,41897.0,41893.0,0.0604793]
[1641914615568,0.42,41897.0,41894.0,0.059687]
[1641914616570,0.42,41897.0,41895.0,0.26386772]
[1641914617369,0.42,41897.0,41894.0,0.06048429]
[1641914617570,0.01927871,41894.0,41892.0,0.0798]
[1641914617973,0.00122388,41895.0,41892.0,0.0798]
[1641914618820,0.00122388,41895.0,41892.0,0.139493]
[1641914619023,0.00122388,41895.0,41893.0,0.46551143]
[1641914619220,0.00122388,41895.0,41893.0,0.51551143]
[1641914619719,0.00122388,41895.0,41893.0,0.58351143]
[1641914619919,0.00122388,41895.0,41893.0,0.53351143]
[1641914620320,0.42,41897.0,41893.0,0.53351143]
[1641914620521,0.42,41897.0,41894.0,0.059687]
[1641914621322,0.42,41897.0,41892.0,0.08059681]
[1641914621527,0.42,41897.0,41893.0,0.059691]
[1641914621723,0.42,41897.0,41894.0,0.059]
[1641914623070,0.42,41897.0,41893.0,0.11937823]
[1641914623571,0.42,41897.0,41893.0,0.37118113]
[1641914623772,0.42,41897.0,41894.0,0.119368]
[1641914623976,0.42,41897.0,41895.0,0.48049093]
[1641914624275,0.00052255,41900.0,41897.0,1.3]
[1641914624473,0.95794621,41915.0,41899.0,2.326]
[1641914624670,0.00052256,41900.0,41899.0,1.369295]
[1641914624870,0.00052256,41900.0,41899.0,2.57984585]
[1641914625071,0.00052256,41900.0,41899.0,2.6159213]
[1641914625723,0.30406207,41914.0,41906.0,0.059663]
[1641914625921,0.36708767,41915.0,41907.0,0.059662]
[1641914626121,0.36708767,41915.0,41908.0,0.52891006]
[1641914626322,0.36582147,41915.0,41908.0,0.52891006]
[1641914626722,0.36582147,41915.0,41909.0,0.05966117]
[1641914626924,0.36582147,41915.0,41910.0,0.059662]
[1641914627121,0.00052313,41914.0,41909.0,0.05966117]
[1641914627721,0.00052313,41914.0,41910.0,0.40428159]
[1641914627922,0.00052313,41914.0,41911.0,0.11931318]
[1641914628122,0.26459347,41920.0,41916.0,0.059658]
[1641914628323,0.39699106,41919.0,41916.0,0.059658]
[1641914628922,0.39699106,41919.0,41912.0,0.0798]
[1641914629122,0.39824976,41919.0,41912.0,0.139464]
[1641914629386,0.05967,41916.0,41912.0,0.0798]
[1641914629579,0.00124017,41913.0,41902.0,0.05]
[1641914629775,0.40277225,41903.0,41902.0,0.05]
[1641914629975,0.40277225,41903.0,41902.0,0.0798]
[1641914630376,0.40277225,41903.0,41902.0,0.1298]
[1641914630777,0.00052623,41905.0,41902.0,0.1298]
[1641914630977,0.00052623,41905.0,41903.0,0.0798]
[1641914631377,0.00052623,41905.0,41904.0,0.65020221]
[1641914631579,0.00124017,41913.0,41904.0,0.65020221]
[1641914631778,0.00052625,41907.0,41904.0,0.65020221]
[1641914631977,0.00052625,41907.0,41905.0,0.31055667]
[1641914632180,0.00052625,41907.0,41904.0,0.35020221]
[1641914632579,0.00052625,41907.0,41903.0,0.1468]
[1641914632777,0.42337506,41912.0,41903.0,0.1468]
[1641914632978,0.42337506,41912.0,41903.0,0.249136]
[1641914632979,0.20052199,41907.0,41903.0,0.249136]
[1641914633220,0.20052199,41907.0,41903.0,0.57978074]
[1641914633422,0.20052199,41907.0,41905.0,0.37166071]
[1641914633622,0.20052199,41907.0,41905.0,0.4313275]
[1641914634023,0.2,41907.0,41905.0,0.4313275]
[1641914634523,0.2,41907.0,41905.0,0.6849248]
[1641914634725,0.2,41907.0,41905.0,0.11933379]
[1641914634925,0.2,41907.0,41905.0,0.059667]
[1641914635125,0.2,41907.0,41903.0,0.0798]
[1641914635725,0.69560421,41906.0,41903.0,0.0798]
[1641914635923,0.00129309,41904.0,41903.0,0.0918]
[1641914636224,0.46687682,41907.0,41903.0,0.0918]
[1641914636225,0.40718982,41907.0,41903.0,0.0918]
[1641914636625,0.40771303,41907.0,41903.0,0.0918]
[1641914637077,0.40771303,41907.0,41903.0,0.0798]
[1641914637676,0.40718982,41907.0,41903.0,0.0798]
[1641914637876,0.40771303,41907.0,41903.0,0.0868]
[1641914638277,0.69487435,41907.0,41903.0,0.0868]
[1641914638677,0.4508746,41905.0,41903.0,0.0868]
[1641914639078,0.40771303,41907.0,41903.0,0.0798]
[1641914639881,0.40771303,41907.0,41903.0,0.0868]
[1641914640079,0.40771303,41907.0,41903.0,0.39427155]
[1641914640080,0.40718982,41907.0,41903.0,0.39427155]
[1641914640280,0.40771269,41907.0,41903.0,0.75965169]
[1641914640481,0.40771269,41907.0,41903.0,0.86932469]
[1641914640721,0.40771269,41907.0,41905.0,0.11934]
[1641914641325,0.4,41907.0,41906.0,1.58973384]
[1641914641526,0.43744835,41907.0,41906.0,1.63973384]
[1641914641924,0.43744835,41907.0,41906.0,1.9279801]
[1641914642124,0.43164835,41907.0,41906.0,1.9279801]
[1641914643024,0.43164835,41907.0,41906.0,2.2897931]
[1641914643424,0.43164835,41907.0,41906.0,0.9897931]
[1641914643825,0.43164835,41907.0,41906.0,1.0007931]
[1641914644124,0.43164835,41907.0,41906.0,1.4507931]
[1641914644381,0.43164835,41907.0,41906.0,1.5007931]
[1641914644573,0.00052297,41909.0,41908.0,2.576]
[1641914644772,0.42,41919.0,41908.0,3.05538937]
[1641914644976,0.42,41919.0,41911.0,1.395293]
[1641914645172,0.42,41919.0,41912.0,0.85961042]
[1641914645372,0.42,41919.0,41913.0,0.5755964]
[1641914645572,0.42,41919.0,41914.0,0.79639479]
[1641914645772,0.42,41919.0,41917.0,0.059648]
[1641914646373,0.42,41919.0,41912.0,0.064]
[1641914646773,0.42,41919.0,41912.0,0.014]
[1641914646774,0.32395304,41917.0,41912.0,0.014]
[1641914647174,0.32395304,41917.0,41912.0,0.05966]
[1641914647378,0.00052303,41917.0,41912.0,0.05966]
[1641914647576,0.00052303,41917.0,41913.0,0.0798]
[1641914647974,0.00052303,41917.0,41915.0,0.0596533]
[1641914648219,0.00052303,41917.0,41916.0,1.35764407]
[1641914648420,0.42,41919.0,41916.0,1.6378093]